[Event "Titled Tuesday Blitz January 31 Early 2023"]
[White "Oglaza, Oskar"]
[Black "Fiorito, Francisco"]
[WhiteFideId "1194402"]
[BlackFideId "180165"]
[WhiteElo "2304"]
[BlackElo "2305"]
[Result "0-1"]
[Round "06"]
[TimeControl "180+2"]
[Date "2023.01.31"]
[WhiteClock "0:00:12"]
[BlackClock "0:01:14"]

1. e4 {[%clk 0:03:00]}  c5 {[%clk 0:02:59]} 2. Nf3 {[%clk 0:03:00]}  Nc6 {[%clk 0:02:59]} 3. d4 {[%clk 0:03:00]}  cxd4 {[%clk 0:02:59]} 4. Nxd4 {[%clk 0:03:01]}  g6 {[%clk 0:03:00]} 5. Nc3 {[%clk 0:03:00]}  Bg7 {[%clk 0:03:00]} 6. Be3 {[%clk 0:03:00]}  Nf6 {[%clk 0:03:01]} 7. Be2 {[%clk 0:03:00]}  O-O {[%clk 0:03:01]} 8. O-O {[%clk 0:03:00]}  d5 {[%clk 0:03:01]} 9. exd5 {[%clk 0:02:58]}  Nxd5 {[%clk 0:03:02]} 10. Nxd5 {[%clk 0:02:50]}  Qxd5 {[%clk 0:03:02]} 11. Bf3 {[%clk 0:02:50]}  Qd7 {[%clk 0:02:54]} 12. Nxc6 {[%clk 0:02:48]}  bxc6 {[%clk 0:02:55]} 13. Qxd7 {[%clk 0:02:46]}  Bxd7 {[%clk 0:02:56]} 14. Rad1 {[%clk 0:02:47]}  Be6 {[%clk 0:02:51]} 15. Bd4 {[%clk 0:02:34]}  Rfc8 {[%clk 0:02:43]} 16. Bxg7 {[%clk 0:02:32]}  Kxg7 {[%clk 0:02:44]} 17. b3 {[%clk 0:02:27]}  Rab8 {[%clk 0:02:44]} 18. c4 {[%clk 0:02:25]}  a5 {[%clk 0:02:43]} 19. Rd3 {[%clk 0:02:21]}  a4 {[%clk 0:02:43]} 20. Rfd1 {[%clk 0:02:14]}  axb3 {[%clk 0:02:43]} 21. axb3 {[%clk 0:02:13]}  Rb4 {[%clk 0:02:43]} 22. Ra1 {[%clk 0:02:11]}  h5 {[%clk 0:02:35]} 23. h3 {[%clk 0:01:57]}  c5 {[%clk 0:02:32]} 24. Ra7 {[%clk 0:01:55]}  Kf6 {[%clk 0:02:26]} 25. Ra8 {[%clk 0:01:50]}  Rxa8 {[%clk 0:02:18]} 26. Bxa8 {[%clk 0:01:51]}  Bf5 {[%clk 0:02:19]} 27. Rc3 {[%clk 0:01:49]}  Ke5 {[%clk 0:02:19]} 28. Re3+ {[%clk 0:01:43]}  Kf6 {[%clk 0:02:03]} 29. Bc6 {[%clk 0:01:03]}  e6 {[%clk 0:02:02]} 30. Kf1 {[%clk 0:00:57]}  Bc2 {[%clk 0:01:57]} 31. Ba4 {[%clk 0:00:55]}  Ke7 {[%clk 0:01:55]} 32. Ke1 {[%clk 0:00:53]}  h4 {[%clk 0:01:53]} 33. Kd2 {[%clk 0:00:47]}  Bf5 {[%clk 0:01:53]} 34. Kc3 {[%clk 0:00:42]}  Kd6 {[%clk 0:01:51]} 35. Bb5 {[%clk 0:00:41]}  g5 {[%clk 0:01:51]} 36. Rf3 {[%clk 0:00:33]}  Bg6 {[%clk 0:01:48]} 37. Re3 {[%clk 0:00:33]}  f5 {[%clk 0:01:46]} 38. f3 {[%clk 0:00:32]}  f4 {[%clk 0:01:46]} 39. Re2 {[%clk 0:00:31]}  Ke7 {[%clk 0:01:42]} 40. Ra2 {[%clk 0:00:32]}  Bf5 {[%clk 0:01:41]} 41. Ra7+ {[%clk 0:00:32]}  Kf6 {[%clk 0:01:41]} 42. Rb7 {[%clk 0:00:31]}  Bb1 {[%clk 0:01:39]} 43. Ra7 {[%clk 0:00:28]}  e5 {[%clk 0:01:37]} 44. Ra6+ {[%clk 0:00:28]}  Kf7 {[%clk 0:01:36]} 45. Ra7+ {[%clk 0:00:28]}  Kf8 {[%clk 0:01:34]} 46. Ra8+ {[%clk 0:00:21]}  Ke7 {[%clk 0:01:34]} 47. Ra7+ {[%clk 0:00:18]}  Kf6 {[%clk 0:01:16]} 48. Ra6+ {[%clk 0:00:17]}  Ke7 {[%clk 0:01:15]} 49. Rg6 {[%clk 0:00:16]}  Bxg6 {[%clk 0:01:15]} 50. Kb2 {[%clk 0:00:13]}  e4 {[%clk 0:01:13]} 51. fxe4 {[%clk 0:00:12]}  Bxe4 {[%clk 0:01:14]} 0-1


[Site "https://www.chess.com"]

[Event "Titled Tuesday Blitz January 31 Early 2023"]
[White "EREBUNI91"]
[Black "Borrmann, Laurenz"]
[BlackFideId "312187930"]
[WhiteElo "2542"]
[BlackElo "2304"]
[Result "1-0"]
[Round "06"]
[TimeControl "180+2"]
[Date "2023.01.31"]
[WhiteClock "0:00:22"]
[BlackClock "0:00:02"]

1. a3 {[%clk 0:03:00]}  d5 {[%clk 0:02:47]} 2. b4 {[%clk 0:02:57]}  e5 {[%clk 0:02:45]} 3. Bb2 {[%clk 0:02:58]}  Bd6 {[%clk 0:02:44]} 4. Nf3 {[%clk 0:02:57]}  Qe7 {[%clk 0:02:43]} 5. d3 {[%clk 0:02:57]}  a5 {[%clk 0:02:38]} 6. b5 {[%clk 0:02:55]}  c6 {[%clk 0:02:35]} 7. Nc3 {[%clk 0:02:36]}  d4 {[%clk 0:02:11]} 8. Ne4 {[%clk 0:02:35]}  cxb5 {[%clk 0:02:06]} 9. Nxd6+ {[%clk 0:02:35]}  Qxd6 {[%clk 0:02:07]} 10. e3 {[%clk 0:02:36]}  Nc6 {[%clk 0:02:07]} 11. Qe2 {[%clk 0:02:33]}  Be6 {[%clk 0:02:02]} 12. exd4 {[%clk 0:02:32]}  exd4 {[%clk 0:02:02]} 13. g3 {[%clk 0:02:17]}  Nf6 {[%clk 0:01:58]} 14. Bh3 {[%clk 0:02:13]}  O-O {[%clk 0:01:53]} 15. Bxe6 {[%clk 0:02:13]}  Rae8 {[%clk 0:01:41]} 16. O-O {[%clk 0:01:55]}  fxe6 {[%clk 0:01:41]} 17. Ng5 {[%clk 0:01:49]}  e5 {[%clk 0:01:37]} 18. Ne4 {[%clk 0:01:45]}  Nxe4 {[%clk 0:01:34]} 19. Qxe4 {[%clk 0:01:46]}  Rd8 {[%clk 0:01:23]} 20. Rae1 {[%clk 0:01:44]}  Qd5 {[%clk 0:01:23]} 21. Qg4 {[%clk 0:01:38]}  b4 {[%clk 0:01:16]} 22. axb4 {[%clk 0:01:30]}  Nxb4 {[%clk 0:01:16]} 23. f4 {[%clk 0:01:30]}  Nxc2 {[%clk 0:01:05]} 24. Re4 {[%clk 0:01:23]}  Ne3 {[%clk 0:00:57]} 25. Rxe3 {[%clk 0:01:22]}  dxe3 {[%clk 0:00:58]} 26. Bxe5 {[%clk 0:01:22]}  Rf7 {[%clk 0:00:56]} 27. h4 {[%clk 0:00:49]}  Qxd3 {[%clk 0:00:45]} 28. h5 {[%clk 0:00:49]}  e2 {[%clk 0:00:35]} 29. Re1 {[%clk 0:00:49]}  Qe3+ {[%clk 0:00:34]} 30. Kg2 {[%clk 0:00:48]}  Qe4+ {[%clk 0:00:27]} 31. Kh2 {[%clk 0:00:47]}  h6 {[%clk 0:00:21]} 32. Rxe2 {[%clk 0:00:45]}  Qf5 {[%clk 0:00:22]} 33. Qh4 {[%clk 0:00:39]}  Re8 {[%clk 0:00:20]} 34. Rd2 {[%clk 0:00:33]}  a4 {[%clk 0:00:18]} 35. g4 {[%clk 0:00:28]}  Qe6 {[%clk 0:00:16]} 36. Qg3 {[%clk 0:00:27]}  b5 {[%clk 0:00:14]} 37. g5 {[%clk 0:00:26]}  b4 {[%clk 0:00:11]} 38. Rd6 {[%clk 0:00:25]}  Qa2+ {[%clk 0:00:10]} 39. Kh3 {[%clk 0:00:24]}  Re6 {[%clk 0:00:10]} 40. Rd8+ {[%clk 0:00:24]}  Rf8 {[%clk 0:00:11]} 41. gxh6 {[%clk 0:00:23]}  g6 {[%clk 0:00:05]} 42. h7+ {[%clk 0:00:22]}  Kxh7 {[%clk 0:00:02]} 43. Rxf8 {[%clk 0:00:22]}  Rxe5 {[%clk 0:00:02]} 44. Qxg6# {[%clk 0:00:22]} 1-0


[Site "https://www.chess.com"]

[Event "Titled Tuesday Blitz January 31 Early 2023"]
[White "Defend, Balint"]
[Black "Sowul, Bartosz"]
[WhiteFideId "17004853"]
[BlackFideId "1137590"]
[WhiteElo "1673"]
[BlackElo "2269"]
[Result "1-0"]
[Round "06"]
[TimeControl "180+2"]
[Date "2023.01.31"]
[WhiteClock "0:00:56"]
[BlackClock "0:00:07"]

1. e4 {[%clk 0:03:00]}  c5 {[%clk 0:03:00]} 2. Nf3 {[%clk 0:02:59]}  d6 {[%clk 0:03:00]} 3. Bb5+ {[%clk 0:02:58]}  Nd7 {[%clk 0:03:00]} 4. Ba4 {[%clk 0:02:58]}  a6 {[%clk 0:02:56]} 5. c3 {[%clk 0:02:57]}  b5 {[%clk 0:02:54]} 6. Bc2 {[%clk 0:02:57]}  c4 {[%clk 0:02:52]} 7. a4 {[%clk 0:02:56]}  Bb7 {[%clk 0:02:52]} 8. O-O {[%clk 0:02:55]}  Ngf6 {[%clk 0:02:48]} 9. Re1 {[%clk 0:02:54]}  e6 {[%clk 0:02:42]} 10. d4 {[%clk 0:02:51]}  cxd3 {[%clk 0:02:42]} 11. Bxd3 {[%clk 0:02:51]}  bxa4 {[%clk 0:02:38]} 12. Bc2 {[%clk 0:02:50]}  Nc5 {[%clk 0:02:36]} 13. Bxa4+ {[%clk 0:02:45]}  Nxa4 {[%clk 0:02:35]} 14. Qxa4+ {[%clk 0:02:46]}  Qd7 {[%clk 0:02:36]} 15. e5 {[%clk 0:02:31]}  Bxf3 {[%clk 0:02:05]} 16. exf6 {[%clk 0:02:29]}  Bc6 {[%clk 0:02:04]} 17. Qh4 {[%clk 0:02:28]}  gxf6 {[%clk 0:02:01]} 18. Qxf6 {[%clk 0:02:28]}  Rg8 {[%clk 0:02:02]} 19. f3 {[%clk 0:02:17]}  Rg6 {[%clk 0:01:48]} 20. Qf4 {[%clk 0:02:15]}  Bh6 {[%clk 0:01:44]} 21. Qd4 {[%clk 0:02:09]}  Bxc1 {[%clk 0:01:38]} 22. Rxc1 {[%clk 0:02:10]}  Bxf3 {[%clk 0:01:38]} 23. g3 {[%clk 0:02:03]}  e5 {[%clk 0:01:34]} 24. Re1 {[%clk 0:02:00]}  Qh3 {[%clk 0:01:19]} 25. Qf2 {[%clk 0:02:00]}  Bb7 {[%clk 0:01:18]} 26. Nd2 {[%clk 0:01:59]}  Rf6 {[%clk 0:01:18]} 27. Qe2 {[%clk 0:01:54]}  Ke7 {[%clk 0:01:11]} 28. Ne4 {[%clk 0:01:53]}  Rg6 {[%clk 0:00:47]} 29. Nxd6 {[%clk 0:01:22]}  Rxg3+ {[%clk 0:00:36]} 30. hxg3 {[%clk 0:01:23]}  Qxg3+ {[%clk 0:00:36]} 31. Kf1 {[%clk 0:01:23]}  Qh3+ {[%clk 0:00:35]} 32. Kf2 {[%clk 0:01:23]}  Kxd6 {[%clk 0:00:13]} 33. Qxe5+ {[%clk 0:01:22]}  Kc6 {[%clk 0:00:12]} 34. Qf6+ {[%clk 0:01:09]}  Kb5 {[%clk 0:00:09]} 35. Re5+ {[%clk 0:00:56]}  Kc4 {[%clk 0:00:09]} 36. Qf4+ {[%clk 0:00:56]}  Kd3 {[%clk 0:00:09]} 37. Qd4+ {[%clk 0:00:55]}  Kc2 {[%clk 0:00:09]} 38. Re2+ {[%clk 0:00:56]}  Kb3 {[%clk 0:00:07]} 39. Qb4# {[%clk 0:00:56]} 1-0


[Site "https://www.chess.com"]

[Event "Titled Tuesday Blitz January 31 Early 2023"]
[White "Battlecruiser_Operational"]
[Black "Veiga, Jose Francisco R P Neves"]
[BlackFideId "1930087"]
[WhiteElo "2422"]
[BlackElo "2406"]
[Result "1-0"]
[Round "06"]
[TimeControl "180+2"]
[Date "2023.01.31"]
[WhiteClock "0:00:09"]
[BlackClock "0:00:19"]

1. d4 {[%clk 0:02:59]}  Nf6 {[%clk 0:02:59]} 2. Nf3 {[%clk 0:02:59]}  g6 {[%clk 0:02:59]} 3. g3 {[%clk 0:02:58]}  Bg7 {[%clk 0:02:59]} 4. Bg2 {[%clk 0:02:58]}  O-O {[%clk 0:03:00]} 5. O-O {[%clk 0:02:58]}  d5 {[%clk 0:03:01]} 6. c4 {[%clk 0:02:51]}  dxc4 {[%clk 0:03:00]} 7. Na3 {[%clk 0:02:50]}  Nc6 {[%clk 0:02:58]} 8. Nxc4 {[%clk 0:02:47]}  Be6 {[%clk 0:02:58]} 9. b3 {[%clk 0:02:45]}  Bd5 {[%clk 0:02:58]} 10. Bb2 {[%clk 0:02:41]}  a5 {[%clk 0:02:57]} 11. Rc1 {[%clk 0:02:34]}  b5 {[%clk 0:02:36]} 12. Nce5 {[%clk 0:02:30]}  Ra6 {[%clk 0:02:36]} 13. Rc5 {[%clk 0:02:24]}  b4 {[%clk 0:02:20]} 14. Nxc6 {[%clk 0:02:07]}  Bxc6 {[%clk 0:02:17]} 15. Qc1 {[%clk 0:02:06]}  Bxf3 {[%clk 0:02:12]} 16. Bxf3 {[%clk 0:02:07]}  Ra7 {[%clk 0:02:06]} 17. Rd1 {[%clk 0:01:53]}  Nd7 {[%clk 0:01:43]} 18. Rc6 {[%clk 0:01:48]}  Qb8 {[%clk 0:01:43]} 19. h4 {[%clk 0:01:39]}  e5 {[%clk 0:01:43]} 20. d5 {[%clk 0:01:32]}  f5 {[%clk 0:01:33]} 21. d6 {[%clk 0:01:22]}  cxd6 {[%clk 0:01:31]} 22. Rdxd6 {[%clk 0:01:16]}  e4 {[%clk 0:01:31]} 23. Bxg7 {[%clk 0:01:13]}  Kxg7 {[%clk 0:01:30]} 24. Bg2 {[%clk 0:01:12]}  Ne5 {[%clk 0:01:11]} 25. Qb2 {[%clk 0:00:57]}  Re7 {[%clk 0:01:10]} 26. Re6 {[%clk 0:00:53]}  Rfe8 {[%clk 0:01:10]} 27. Rxe7+ {[%clk 0:00:47]}  Rxe7 {[%clk 0:01:11]} 28. Rc5 {[%clk 0:00:42]}  Kh6 {[%clk 0:01:07]} 29. Qd2+ {[%clk 0:00:37]}  Kg7 {[%clk 0:01:06]} 30. Rxa5 {[%clk 0:00:37]}  Qb6 {[%clk 0:01:04]} 31. Qd5 {[%clk 0:00:27]}  Ng4 {[%clk 0:00:37]} 32. e3 {[%clk 0:00:23]}  Rc7 {[%clk 0:00:36]} 33. Bf1 {[%clk 0:00:15]}  Rc1 {[%clk 0:00:31]} 34. Qd7+ {[%clk 0:00:10]}  Kh6 {[%clk 0:00:31]} 35. Ra7 {[%clk 0:00:10]}  Kh5 {[%clk 0:00:20]} 36. Qxh7+ {[%clk 0:00:09]}  Nh6 {[%clk 0:00:20]} 37. Kg2 {[%clk 0:00:08]}  Rxf1 {[%clk 0:00:15]} 38. Kxf1 {[%clk 0:00:07]}  Qb5+ {[%clk 0:00:16]} 39. Kg2 {[%clk 0:00:06]}  Qe2 {[%clk 0:00:15]} 40. Rg7 {[%clk 0:00:06]}  Qf3+ {[%clk 0:00:15]} 41. Kg1 {[%clk 0:00:06]}  Qd1+ {[%clk 0:00:15]} 42. Kh2 {[%clk 0:00:06]}  Qg4 {[%clk 0:00:16]} 43. Qh8 {[%clk 0:00:03]}  f4 {[%clk 0:00:14]} 44. exf4 {[%clk 0:00:02]}  e3 {[%clk 0:00:15]} 45. Rh7 {[%clk 0:00:01]}  Qg5 {[%clk 0:00:09]} 46. fxg5 {[%clk 0:00:02]}  Kg4 {[%clk 0:00:09]} 47. Rxh6 {[%clk 0:00:03]}  Kf3 {[%clk 0:00:10]} 48. Qf8+ {[%clk 0:00:03]}  Ke2 {[%clk 0:00:11]} 49. fxe3 {[%clk 0:00:04]}  Kd2 {[%clk 0:00:11]} 50. Rxg6 {[%clk 0:00:04]}  Kc2 {[%clk 0:00:12]} 51. Rd6 {[%clk 0:00:05]}  Kb2 {[%clk 0:00:13]} 52. Qf4 {[%clk 0:00:05]}  Kxa2 {[%clk 0:00:14]} 53. Qxb4 {[%clk 0:00:06]}  Kb2 {[%clk 0:00:14]} 54. Qb7 {[%clk 0:00:06]}  Kc1 {[%clk 0:00:15]} 55. Qc7+ {[%clk 0:00:06]}  Kb2 {[%clk 0:00:15]} 56. b4 {[%clk 0:00:07]}  Kb1 {[%clk 0:00:16]} 57. b5 {[%clk 0:00:07]}  Ka2 {[%clk 0:00:17]} 58. b6 {[%clk 0:00:08]}  Kb2 {[%clk 0:00:18]} 59. b7 {[%clk 0:00:09]}  Ka1 {[%clk 0:00:18]} 60. b8=Q {[%clk 0:00:09]}  Ka2 {[%clk 0:00:19]} 61. Qca7# {[%clk 0:00:09]} 1-0


[Site "https://www.chess.com"]

[Event "Titled Tuesday Blitz January 31 Early 2023"]
[White "Chakravarthi Reddy, M"]
[Black "Osmak, Yuliia"]
[WhiteFideId "25009532"]
[BlackFideId "14101602"]
[WhiteElo "2279"]
[BlackElo "2440"]
[Result "0-1"]
[Round "06"]
[TimeControl "180+2"]
[Date "2023.01.31"]
[WhiteClock "0:00:03"]
[BlackClock "0:00:07"]

1. e4 {[%clk 0:02:59]}  c5 {[%clk 0:02:59]} 2. Nf3 {[%clk 0:02:59]}  Nf6 {[%clk 0:02:59]} 3. e5 {[%clk 0:02:57]}  Nd5 {[%clk 0:02:58]} 4. c3 {[%clk 0:02:56]}  Nc6 {[%clk 0:02:54]} 5. Bc4 {[%clk 0:02:56]}  Nb6 {[%clk 0:02:54]} 6. Bb3 {[%clk 0:02:56]}  d5 {[%clk 0:02:54]} 7. d4 {[%clk 0:02:52]}  Bg4 {[%clk 0:02:41]} 8. dxc5 {[%clk 0:02:50]}  Nd7 {[%clk 0:02:41]} 9. Qxd5 {[%clk 0:02:48]}  e6 {[%clk 0:02:41]} 10. Qe4 {[%clk 0:02:43]}  Bf5 {[%clk 0:02:20]} 11. Qh4 {[%clk 0:02:18]}  Be7 {[%clk 0:01:55]} 12. Qg3 {[%clk 0:02:16]}  Nxc5 {[%clk 0:01:46]} 13. O-O {[%clk 0:02:14]}  O-O {[%clk 0:01:35]} 14. Nbd2 {[%clk 0:01:49]}  Nd3 {[%clk 0:01:27]} 15. Nc4 {[%clk 0:01:38]}  b5 {[%clk 0:01:11]} 16. Ne3 {[%clk 0:01:36]}  Bg6 {[%clk 0:01:08]} 17. h4 {[%clk 0:01:28]}  Qc7 {[%clk 0:01:05]} 18. Ng4 {[%clk 0:01:27]}  h5 {[%clk 0:01:01]} 19. Nh6+ {[%clk 0:00:39]}  gxh6 {[%clk 0:01:01]} 20. Bxh6 {[%clk 0:00:40]}  Rfd8 {[%clk 0:00:52]} 21. Bxe6 {[%clk 0:00:40]}  Ncxe5 {[%clk 0:00:52]} 22. Nxe5 {[%clk 0:00:37]}  Nxe5 {[%clk 0:00:52]} 23. Bf4 {[%clk 0:00:22]}  Bxh4 {[%clk 0:00:50]} 24. Qe3 {[%clk 0:00:15]}  Ng4 {[%clk 0:00:38]} 25. Bxc7 {[%clk 0:00:10]}  Nxe3 {[%clk 0:00:38]} 26. Bxd8 {[%clk 0:00:10]}  Nxf1 {[%clk 0:00:32]} 27. Bxh4 {[%clk 0:00:09]}  Nd2 {[%clk 0:00:29]} 28. Bd5 {[%clk 0:00:08]}  Re8 {[%clk 0:00:29]} 29. Rd1 {[%clk 0:00:07]}  Ne4 {[%clk 0:00:26]} 30. Re1 {[%clk 0:00:06]}  Kf8 {[%clk 0:00:24]} 31. Bxe4 {[%clk 0:00:05]}  Bxe4 {[%clk 0:00:23]} 32. f3 {[%clk 0:00:05]}  Bd5 {[%clk 0:00:23]} 33. Rxe8+ {[%clk 0:00:04]}  Kxe8 {[%clk 0:00:23]} 34. Kf2 {[%clk 0:00:05]}  Bxa2 {[%clk 0:00:23]} 35. Ke3 {[%clk 0:00:05]}  Kd7 {[%clk 0:00:23]} 36. Kd4 {[%clk 0:00:05]}  Kc6 {[%clk 0:00:21]} 37. Bf2 {[%clk 0:00:05]}  Be6 {[%clk 0:00:20]} 38. g3 {[%clk 0:00:05]}  Bd5 {[%clk 0:00:18]} 39. b4 {[%clk 0:00:06]}  Bxf3 {[%clk 0:00:18]} 40. Ke5 {[%clk 0:00:06]}  a6 {[%clk 0:00:17]} 41. Kf6 {[%clk 0:00:06]}  Bd5 {[%clk 0:00:16]} 42. Kg5 {[%clk 0:00:07]}  Bf3 {[%clk 0:00:14]} 43. Kf6 {[%clk 0:00:07]}  Kd5 {[%clk 0:00:14]} 44. Kxf7 {[%clk 0:00:06]}  Kc4 {[%clk 0:00:15]} 45. Bd4 {[%clk 0:00:06]}  Bg4 {[%clk 0:00:16]} 46. Kf6 {[%clk 0:00:06]}  a5 {[%clk 0:00:15]} 47. bxa5 {[%clk 0:00:06]}  b4 {[%clk 0:00:15]} 48. a6 {[%clk 0:00:06]}  b3 {[%clk 0:00:14]} 49. a7 {[%clk 0:00:04]}  Bf3 {[%clk 0:00:14]} 50. Be5 {[%clk 0:00:02]}  b2 {[%clk 0:00:13]} 51. Kg5 {[%clk 0:00:02]}  b1=Q {[%clk 0:00:12]} 52. Bf4 {[%clk 0:00:03]}  Qb7 {[%clk 0:00:09]} 53. a8=Q {[%clk 0:00:03]}  Qg7+ {[%clk 0:00:08]} 54. Kh4 {[%clk 0:00:03]}  Qg4# {[%clk 0:00:07]} 0-1


[Site "https://www.chess.com"]

[Event "Titled Tuesday Blitz January 31 Early 2023"]
[White "Manukyan, Artyom"]
[Black "Gonzalez, Francisco Silva"]
[WhiteFideId "13305786"]
[BlackFideId "1512285"]
[WhiteElo "2110"]
[BlackElo "2021"]
[Result "1-0"]
[Round "06"]
[TimeControl "180+2"]
[Date "2023.01.31"]
[WhiteClock "0:00:14"]
[BlackClock "0:00:01"]

1. e4 {[%clk 0:02:58]}  e5 {[%clk 0:02:56]} 2. Nf3 {[%clk 0:02:56]}  Nc6 {[%clk 0:02:54]} 3. Bc4 {[%clk 0:02:57]}  Bc5 {[%clk 0:02:53]} 4. c3 {[%clk 0:02:57]}  Nf6 {[%clk 0:02:53]} 5. d4 {[%clk 0:02:57]}  exd4 {[%clk 0:02:52]} 6. e5 {[%clk 0:02:58]}  d5 {[%clk 0:02:52]} 7. Bb5 {[%clk 0:02:58]}  Ne4 {[%clk 0:02:52]} 8. cxd4 {[%clk 0:02:57]}  Bb4+ {[%clk 0:02:52]} 9. Nbd2 {[%clk 0:02:56]}  O-O {[%clk 0:02:48]} 10. a3 {[%clk 0:02:56]}  Ba5 {[%clk 0:02:46]} 11. O-O {[%clk 0:02:56]}  Bg4 {[%clk 0:02:45]} 12. Be2 {[%clk 0:02:37]}  Bxd2 {[%clk 0:02:38]} 13. Bxd2 {[%clk 0:02:35]}  Bxf3 {[%clk 0:02:36]} 14. gxf3 {[%clk 0:02:35]}  Nxd2 {[%clk 0:02:16]} 15. Qxd2 {[%clk 0:02:36]}  Qh4 {[%clk 0:02:15]} 16. f4 {[%clk 0:02:30]}  Rae8 {[%clk 0:02:13]} 17. Bf3 {[%clk 0:02:29]}  Re6 {[%clk 0:02:10]} 18. Bg2 {[%clk 0:02:12]}  Rh6 {[%clk 0:02:08]} 19. h3 {[%clk 0:02:11]}  Rg6 {[%clk 0:02:05]} 20. Kh2 {[%clk 0:02:10]}  Ne7 {[%clk 0:01:57]} 21. Rg1 {[%clk 0:02:04]}  c6 {[%clk 0:01:53]} 22. Rae1 {[%clk 0:02:03]}  Nf5 {[%clk 0:01:52]} 23. Bf3 {[%clk 0:01:37]}  h5 {[%clk 0:01:45]} 24. Rxg6 {[%clk 0:01:28]}  fxg6 {[%clk 0:01:44]} 25. Rg1 {[%clk 0:01:28]}  Kh7 {[%clk 0:01:39]} 26. b4 {[%clk 0:00:38]}  Rf7 {[%clk 0:01:23]} 27. b5 {[%clk 0:00:36]}  Rc7 {[%clk 0:01:21]} 28. bxc6 {[%clk 0:00:35]}  bxc6 {[%clk 0:01:10]} 29. Rc1 {[%clk 0:00:35]}  Rb7 {[%clk 0:00:47]} 30. Rxc6 {[%clk 0:00:30]}  Rb3 {[%clk 0:00:46]} 31. Bg2 {[%clk 0:00:23]}  Rxa3 {[%clk 0:00:33]} 32. e6 {[%clk 0:00:20]}  a5 {[%clk 0:00:30]} 33. Rc7 {[%clk 0:00:18]}  a4 {[%clk 0:00:28]} 34. Kg1 {[%clk 0:00:09]}  Ra1+ {[%clk 0:00:26]} 35. Kh2 {[%clk 0:00:10]}  Ra3 {[%clk 0:00:25]} 36. Kg1 {[%clk 0:00:10]}  Rb3 {[%clk 0:00:24]} 37. Ra7 {[%clk 0:00:09]}  a3 {[%clk 0:00:23]} 38. Kh2 {[%clk 0:00:09]}  Rb2 {[%clk 0:00:21]} 39. Qe1 {[%clk 0:00:06]}  Qxf4+ {[%clk 0:00:20]} 40. Kg1 {[%clk 0:00:06]}  a2 {[%clk 0:00:19]} 41. e7 {[%clk 0:00:03]}  Rb1 {[%clk 0:00:19]} 42. e8=Q {[%clk 0:00:03]}  Rxe1+ {[%clk 0:00:16]} 43. Qxe1 {[%clk 0:00:04]}  Nxd4 {[%clk 0:00:16]} 44. Rxa2 {[%clk 0:00:04]}  Qg5 {[%clk 0:00:15]} 45. Kh1 {[%clk 0:00:04]}  Nf5 {[%clk 0:00:14]} 46. Rd2 {[%clk 0:00:04]}  d4 {[%clk 0:00:14]} 47. Qe4 {[%clk 0:00:04]}  Qd8 {[%clk 0:00:13]} 48. Rd3 {[%clk 0:00:03]}  Qd6 {[%clk 0:00:13]} 49. Qf3 {[%clk 0:00:03]}  Qc5 {[%clk 0:00:13]} 50. Qe2 {[%clk 0:00:03]}  Qc1+ {[%clk 0:00:13]} 51. Rd1 {[%clk 0:00:04]}  Qc7 {[%clk 0:00:13]} 52. Kg1 {[%clk 0:00:04]}  Qd6 {[%clk 0:00:13]} 53. Be4 {[%clk 0:00:04]}  Nh4 {[%clk 0:00:12]} 54. Qd3 {[%clk 0:00:04]}  Qf4 {[%clk 0:00:11]} 55. Qxd4 {[%clk 0:00:04]}  Qg5+ {[%clk 0:00:11]} 56. Kf1 {[%clk 0:00:04]}  Qf4 {[%clk 0:00:10]} 57. Bxg6+ {[%clk 0:00:03]}  Nxg6 {[%clk 0:00:10]} 58. Qxf4 {[%clk 0:00:04]}  Nxf4 {[%clk 0:00:11]} 59. h4 {[%clk 0:00:04]}  g5 {[%clk 0:00:10]} 60. hxg5 {[%clk 0:00:04]}  Kg6 {[%clk 0:00:11]} 61. Rd4 {[%clk 0:00:04]}  Kxg5 {[%clk 0:00:11]} 62. Ra4 {[%clk 0:00:05]}  Kg4 {[%clk 0:00:11]} 63. Kg1 {[%clk 0:00:05]}  Kf3 {[%clk 0:00:10]} 64. Kf1 {[%clk 0:00:05]}  h4 {[%clk 0:00:10]} 65. Ra3+ {[%clk 0:00:05]}  Kg4 {[%clk 0:00:09]} 66. Rb3 {[%clk 0:00:05]}  Kg5 {[%clk 0:00:08]} 67. Kg1 {[%clk 0:00:05]}  Kf5 {[%clk 0:00:09]} 68. Kh2 {[%clk 0:00:05]}  Kg5 {[%clk 0:00:09]} 69. Rb8 {[%clk 0:00:05]}  Kg4 {[%clk 0:00:09]} 70. Rb3 {[%clk 0:00:05]}  Kg5 {[%clk 0:00:08]} 71. f3 {[%clk 0:00:06]}  Kf5 {[%clk 0:00:09]} 72. Rb5+ {[%clk 0:00:06]}  Kg6 {[%clk 0:00:09]} 73. Rc5 {[%clk 0:00:05]}  Kf6 {[%clk 0:00:09]} 74. Ra5 {[%clk 0:00:05]}  Kg6 {[%clk 0:00:09]} 75. Kg1 {[%clk 0:00:06]}  Kf6 {[%clk 0:00:10]} 76. Kf2 {[%clk 0:00:06]}  Kg6 {[%clk 0:00:10]} 77. Ke3 {[%clk 0:00:06]}  Ng2+ {[%clk 0:00:09]} 78. Ke4 {[%clk 0:00:05]}  h3 {[%clk 0:00:10]} 79. Ra1 {[%clk 0:00:05]}  Kh5 {[%clk 0:00:07]} 80. f4 {[%clk 0:00:05]}  Kg4 {[%clk 0:00:07]} 81. f5 {[%clk 0:00:05]}  Nh4 {[%clk 0:00:07]} 82. f6 {[%clk 0:00:05]}  h2 {[%clk 0:00:06]} 83. Ke5 {[%clk 0:00:05]}  Kg3 {[%clk 0:00:06]} 84. f7 {[%clk 0:00:05]}  Ng6+ {[%clk 0:00:06]} 85. Kf6 {[%clk 0:00:06]}  Nf8 {[%clk 0:00:06]} 86. Ra3+ {[%clk 0:00:06]}  Kg2 {[%clk 0:00:06]} 87. Ra2+ {[%clk 0:00:07]}  Kg1 {[%clk 0:00:06]} 88. Ra1+ {[%clk 0:00:08]}  Kg2 {[%clk 0:00:06]} 89. Ke7 {[%clk 0:00:08]}  Ng6+ {[%clk 0:00:06]} 90. Ke6 {[%clk 0:00:08]}  Nf8+ {[%clk 0:00:06]} 91. Kf5 {[%clk 0:00:08]}  h1=Q {[%clk 0:00:04]} 92. Rxh1 {[%clk 0:00:08]}  Kxh1 {[%clk 0:00:05]} 93. Kf6 {[%clk 0:00:09]}  Kh2 {[%clk 0:00:03]} 94. Kg7 {[%clk 0:00:10]}  Ne6+ {[%clk 0:00:03]} 95. Kg8 {[%clk 0:00:10]}  Kh3 {[%clk 0:00:03]} 96. Kh7 {[%clk 0:00:11]}  Kg4 {[%clk 0:00:02]} 97. Kg6 {[%clk 0:00:12]}  Kf4 {[%clk 0:00:02]} 98. Kf6 {[%clk 0:00:13]}  Nf8 {[%clk 0:00:02]} 99. Ke7 {[%clk 0:00:13]}  Ng6+ {[%clk 0:00:02]} 100. Kf6 {[%clk 0:00:14]}  Ke4 {[%clk 0:00:02]} 101. Kg7 {[%clk 0:00:14]}  Ne7 {[%clk 0:00:02]} 102. f8=Q {[%clk 0:00:15]}  Nf5+ {[%clk 0:00:02]} 103. Kg6 {[%clk 0:00:14]}  Ne3 {[%clk 0:00:01]} 104. Qe7+ {[%clk 0:00:14]}  Kd4 {[%clk 0:00:02]} 105. Kg5 {[%clk 0:00:15]}  Nd5 {[%clk 0:00:02]} 106. Qd8 {[%clk 0:00:15]}  Ke5 {[%clk 0:00:02]} 107. Qa8 {[%clk 0:00:14]}  Ke6 {[%clk 0:00:02]} 108. Qa6+ {[%clk 0:00:14]}  Ke5 {[%clk 0:00:02]} 109. Qa8 {[%clk 0:00:14]}  Ke6 {[%clk 0:00:02]} 110. Qc8+ {[%clk 0:00:14]}  Ke5 {[%clk 0:00:03]} 111. Qe8+ {[%clk 0:00:14]}  Kd6 {[%clk 0:00:03]} 112. Kf5 {[%clk 0:00:13]}  Ne7+ {[%clk 0:00:03]} 113. Ke4 {[%clk 0:00:14]}  Nc6 {[%clk 0:00:02]} 114. Qg6+ {[%clk 0:00:14]}  Kd7 {[%clk 0:00:02]} 115. Qh7+ {[%clk 0:00:14]}  Kd6 {[%clk 0:00:02]} 116. Qh6+ {[%clk 0:00:13]}  Kd7 {[%clk 0:00:02]} 117. Kd5 {[%clk 0:00:14]}  Ne7+ {[%clk 0:00:03]} 118. Kc5 {[%clk 0:00:14]}  Nf5 {[%clk 0:00:02]} 119. Qf6 {[%clk 0:00:14]}  Ne7 {[%clk 0:00:02]} 120. Qd6+ {[%clk 0:00:14]}  Ke8 {[%clk 0:00:02]} 121. Qc7 {[%clk 0:00:15]}  Nf5 {[%clk 0:00:01]} 122. Kd5 {[%clk 0:00:14]}  Ne7+ {[%clk 0:00:01]} 123. Ke6 {[%clk 0:00:14]} 1-0


[Site "https://www.chess.com"]